[Event "MARCEL 1st Div Ch-League 2019"]
[Site "Dhaka"]
[Date "2019.11.18"]
[Round "7.6"]
[White "Md. Moniruzzaman, Masud"]
[Black "Nurul, Islam"]
[Result "1-0"]
[ECO "D85"]
[WhiteElo "1828"]
[BlackElo "1989"]
[Annotator "NA RC"]
[PlyCount "73"]
[EventDate "2019.11.12"]
[EventCountry "BAN"]
[SourceTitle "playchess.com"]
[Source "ChessBase"]
[SourceQuality "1"]
[TimeControl "5400+30"]

{[%evp 9,73,37,33,10,43,41,48,33,46,38,22,40,42,32767,49,38,39,0,9,0,0,0,0,-14,0,-13,-4,-2,7,0,0,0,22,34,30,18,30,56,89,62,152,177,174,187,192,169,237,179,241,221,273,200,282,316,1070,1000,1072,1052,5739,1115,1718,29974,2093,29976,29982,29985]} 1. Nf3 {[%emt 0:00:00]} Nf6 {[%emt 0:07:39]} 2. e3 {[%emt 0:00:57]} g6 {[%emt 0:00:11]} 3. d4 {[%emt 0:01:48]} d5 {[%emt 0:00:51]} 4. c4 {[%emt 0:00:46]} c6 {[%emt 0:00:35]} 5. Nc3 {[%emt 0:00:29]} Bg7 {[%emt 0:00:08]} 6. cxd5 {[%emt 0:03:31]} Nxd5 {[%emt 0:00:32]} 7. Be2 {[%emt 0:01:14]} O-O {[%emt 0:00:11]} 8. e4 {[%emt 0:00:47]} Nxc3 {[%emt 0:00:35]} 9. bxc3 {[%emt 0:00:10]} c5 {[%emt 0:00:09]} 10. O-O {[%emt 0:00:36]} cxd4 {[%emt 0:00:10]} 11. cxd4 {[%emt 0:00:17]} Nc6 {[%emt 0:00:13]} 12. Be3 {[%emt 0:00:37]} Bg4 {[%emt 0:00:34]} 13. e5 {[%emt 0:00:46]} (13. d5 $5 {[%cal Rd5c6]} Nb4 14. Nd4 Bxe2 15. Qxe2 $14) 13... Qa5 {[%emt 0:05:48] D85: Exchange Grünfeld: Unusual White 7th moves and lines with 7 Nf3} (13... Be6 14. Rb1 Bxa2 15. Rxb7 Bd5 16. Rb5 e6 17. Qa4 Rb8 18. Rc1 Rxb5 19. Bxb5 Bxf3 20. gxf3 Ne7 21. Qxa7 {0-1 (46) Milov,V (2620)-Ruck,R (2572) Panormo 2002}) 14. h3 {[%emt 0:02:24]} Be6 {[%emt 0:00:38]} 15. Qb1 $146 {[%emt 1:23:08]} ({Predecessor:} 15. Ng5 Bd5 16. h4 Rac8 17. h5 Nb4 18. hxg6 hxg6 19. Bd2 {½-½ (37) Fiorito,F (2455)-Alonso,S (2390) Buenos Aires 1998}) 15... Bd5 {[%emt 0:02:22]} 16. Rc1 {[%emt 0:02:41]} e6 {[%emt 0:05:48]} 17. Rc5 {[%emt 1:17:15]} Qc7 {[%emt 0:02:47]} 18. Qb2 {[%emt 0:01:32]} f6 {[%emt 0:10:12]} 19. exf6 {[%emt 0:00:37]} Bxf6 {[%emt 0:00:23]} 20. Rac1 {[%emt 0:01:17]} Rac8 {[%emt 0:01:43]} 21. Ne5 {[%emt 0:04:55]} Qg7 {[%emt 0:03:22]} 22. Nxc6 {[%emt 0:00:53]} bxc6 {[%emt 0:00:10]} 23. Bc4 {[%emt 0:01:54]} Rb8 {[%emt 0:00:48]} 24. Qc3 {[%emt 0:01:10]} Be7 {[%emt 0:02:15]} ({Better is} 24... Rb7 $14) 25. Bxd5 {[%emt 0:00:41]} cxd5 {[%emt 0:00:37]} 26. Rc7 {[%emt 0:00:37]} Rf7 {[%emt 0:12:02]} 27. Rxa7 {[%emt 0:01:41]} Qf6 {[%emt 0:00:37]} (27... Bd8 {is a better defense.} 28. Rxf7 Qxf7) 28. Rc7 {[%emt 0:02:05]} Kg7 {[%emt 0:00:12]} (28... Bb4 $142 29. Rxf7 Qxf7) 29. Qd2 {[%emt 0:01:35]} h5 {[%emt 0:01:04]} 30. g3 {[%emt 0:01:58]} Kh7 {[%emt 0:00:40]} (30... Bd6 {was necessary.} 31. Bh6+ Kh7) 31. Bf4 {[%emt 0:00:44]} Qf5 $2 {[%emt 0:01:15] [#]} (31... Ra8 32. Qe2 Qf5) 32. Rxe7 $1 {[%emt 0:00:41] Discovered Attack} Rbf8 {[%emt 0:00:28]} 33. Rcc7 {[%emt 0:00:32]} Rxe7 {[%emt 0:02:27]} 34. Rxe7+ {[%emt 1:01:39]} Rf7 {[%emt 0:00:10]} 35. Rxf7+ {[%emt 0:00:52]} Qxf7 {[%emt 0:39:54]} 36. Be5 {[%emt 1:01:26]} Qf5 {[%emt 0:00:00]} 37. Qf4 {[%emt 0:00:30]} 1-0

[Event "MARCEL 1st Div Ch-League 2019"]
[Site "Dhaka"]
[Date "2019.11.18"]
[Round "7.7"]
[White "Bappi, A.b."]
[Black "Shivshankar Iyer S"]
[Result "1-0"]
[ECO "E00"]
[WhiteElo "1827"]
[BlackElo "1573"]
[Annotator "NA RC"]
[PlyCount "36"]
[EventDate "2019.11.12"]
[EventCountry "BAN"]
[SourceTitle "playchess.com"]
[Source "ChessBase"]
[SourceQuality "1"]
[TimeControl "5400+30"]

{[%evp 14,36,0,32767,-1,-13,-11,32767,32767,-8,-14,-26,0,-2,32767,0,0,-36,0,-13,0,-59,-28,-60,49]} 1. c4 {[%emt 0:00:00]} e6 {[%emt 0:00:00]} 2. d4 {[%emt 0:00:00]} d5 {[%emt 0:00:11]} 3. a3 {[%emt 0:00:00]} Nf6 {[%emt 0:02:22]} 4. Nc3 {[%emt 0:00:00]} Be7 {[%emt 0:00:46]} 5. Nf3 {[%emt 0:00:00]} O-O {[%emt 1:29:11]} 6. h3 {[%emt 0:00:00]} c5 {[%emt 0:00:00]} 7. dxc5 {[%emt 0:00:00]} Bxc5 {[%emt 0:00:00]} 8. b4 {[%emt 0:00:00]} Be7 {[%emt 0:00:00]} 9. e3 {[%emt 0:00:00]} a5 {[%emt 0:00:00]} 10. b5 {[%emt 0:00:00]} Qc7 {[%emt 0:00:00]} 11. Be2 {[%emt 0:00:00]} dxc4 {[%emt 0:00:00]} 12. O-O {[%emt 0:00:00]} Rd8 {[%emt 0:00:00]} 13. Qc2 {[%emt 0:00:00]} b6 {[%emt 0:00:00]} 14. Bb2 {[%emt 0:00:00]} Bb7 {[%emt 0:00:00]} 15. Rac1 {[%emt 0:00:00]} Nbd7 {[%emt 0:00:00]} 16. Na4 {[%emt 0:00:00]} Bd5 {[%emt 0:00:00]} 17. Nd2 {[%emt 0:00:00]} ({Better is} 17. Bxc4 $11 Rac8 18. Nd2) 17... Qb7 {[%emt 0:00:00]} 18. f3 {[%emt 0:03:00]} e5 $14 {[%emt 0:00:00]} (18... Nh5 $15) 1-0

[Event "MARCEL 1st Div Ch-League 2019"]
[Site "Dhaka"]
[Date "2019.11.18"]
[Round "7.8"]
[White "Kishor, Shazzad"]
[Black "Khondakar, Nazre Mowla"]
[Result "1/2-1/2"]
[ECO "D30"]
[WhiteElo "1617"]
[BlackElo "1864"]
[Annotator "NA RC"]
[PlyCount "84"]
[EventDate "2019.11.12"]
[EventCountry "BAN"]
[SourceTitle "playchess.com"]
[Source "ChessBase"]
[SourceQuality "1"]
[TimeControl "5400+30"]

{[%evp 9,84,38,31,7,22,26,22,33,43,39,27,40,37,25,47,35,25,17,21,26,29,31,47,41,65,60,75,45,66,48,82,13,46,16,102,95,95,85,74,52,53,-16,0,-2,16,11,51,41,41,45,50,53,73,39,42,41,115,109,141,122,119,26,56,50,58,29,112,32767,32767,32767,39,34,198,38,146,0,178]} 1. g3 {[%emt 0:02:04]} d5 {[%emt 0:00:23]} 2. Bg2 {[%emt 0:00:12]} c5 {[%emt 0:00:26]} 3. c4 {[%emt 0:02:10]} e6 {[%emt 0:04:13]} 4. Nf3 {[%emt 0:00:40]} Nc6 {[%emt 0:01:00]} 5. cxd5 {[%emt 0:04:36]} exd5 {[%emt 0:00:15]} 6. O-O {[%emt 0:00:26]} Nf6 {[%emt 0:04:48]} 7. d4 {[%emt 0:02:20]} Be7 {[%emt 0:03:42]} 8. dxc5 {[%emt 0:03:47]} Bxc5 {[%emt 0:03:49]} 9. a3 {[%emt 0:00:51]} O-O {[%emt 0:07:25]} 10. b4 {[%emt 0:00:12]} Be7 {[%emt 0:00:05]} 11. Bb2 {[%emt 0:00:53]} Be6 {[%emt 0:01:47] D30: Queen's Gambit Declined: Systems without Nc3} (11... Bg4 12. Nbd2 Re8 13. Nb3 Rc8 14. Rc1 Ne4 15. b5 Nb8 16. Rxc8 Bxc8 17. a4 Bf6 18. Bxf6 Qxf6 19. e3 {1-0 (41) Lagno,K (2523)-Zvjaginsev,V (2660) Moscow 2015}) 12. Nd4 $146 {[%emt 0:01:23]} ({Predecessor:} 12. Nc3 Qd7 13. Rc1 Rad8 14. Na4 Ne4 15. Nd2 Bh3 16. Nxe4 Bxg2 17. Nf6+ Bxf6 18. Kxg2 d4 19. Nc5 {½-½ (32) Malikentzos,S (2347)-Managadze,N (2477) Achaia 2013}) 12... Nxd4 {[%emt 0:01:17]} 13. Qxd4 {[%emt 0:03:58]} Qd7 {[%emt 0:03:03]} 14. Nc3 {[%emt 0:01:44]} Rfd8 {[%emt 0:00:54]} 15. Rfd1 {[%emt 0:01:28]} Bf8 {[%emt 0:11:15]} 16. Rd2 {[%emt 0:02:26]} b6 {[%emt 0:01:36]} 17. Rad1 {[%emt 0:04:56]} Qc6 {[%emt 0:21:42]} 18. Rc1 {[%emt 0:06:08]} Qb7 {[%emt 0:10:32]} 19. e3 {[%emt 0:08:43]} Rd7 {[%emt 0:00:51]} 20. f3 {[%emt 0:03:10]} (20. Rf1 $16) 20... Rad8 {[%emt 0:00:31]} 21. Ne2 {[%emt 0:01:32]} Be7 {[%emt 0:04:45]} ({Black should try} 21... Ne4 $14) 22. Nf4 {[%emt 0:02:04]} Ne8 {[%emt 0:00:39]} 23. Nxe6 {[%emt 0:04:23]} fxe6 {[%emt 0:00:08]} 24. Qe5 {[%emt 0:11:06]} Rd6 {[%emt 0:01:36]} 25. h4 {[%emt 0:14:14]} (25. Qf4 $14) 25... Bf6 {[%emt 0:00:40]} 26. Qf4 {[%emt 0:01:17]} Bxb2 {[%emt 0:00:42]} 27. Rxb2 {[%emt 0:00:01]} Qf7 {[%emt 0:01:34]} 28. Qxf7+ {[%emt 0:00:45]} Kxf7 {[%emt 0:00:06]} 29. Kf2 {[%emt 0:01:54]} R8d7 {[%emt 0:00:52]} 30. Rbc2 {[%emt 0:00:33]} Rb7 {[%emt 0:00:21]} 31. f4 {[%emt 0:01:25]} Rdd7 {[%emt 0:00:30]} 32. e4 {[%emt 0:04:43]} Nf6 {[%emt 0:00:11]} (32... dxe4 $14 33. Bxe4 {[%mdl 64] Double Attack} Rb8) 33. e5 {[%emt 0:00:53]} Ne8 {[%emt 0:00:14]} 34. Ke3 {[%emt 0:04:55]} Rbc7 {[%emt 0:00:16]} 35. Kd4 {[%emt 0:00:56]} (35. Rc6 $16) 35... g6 {[%emt 0:00:22]} 36. b5 {[%emt 0:01:11]} Rxc2 {[%emt 0:00:08]} 37. Rxc2 {[%emt 0:00:04]} Rc7 {[%emt 0:00:05]} ({Black should try} 37... Ng7 $14) 38. Rxc7+ {[%emt 0:04:57]} Nxc7 {[%emt 0:00:06]} 39. a4 {[%emt 0:00:30]} Ke7 {[%emt 0:01:06]} 40. g4 {[%emt 0:00:00]} Kf7 {[%emt 0:04:55] [#]} 41. Bh3 {[%emt 0:00:00]} (41. Bf1 $1 $18) 41... Ke7 {[%emt 0:04:32]} (41... a6 $14) 42. Bg2 $2 {[%emt 0:00:00]} ({White should play} 42. Ke3 $18) 42... Kf7 $18 {[%emt 0:02:28]} 1/2-1/2

[Event "MARCEL 1st Div Ch-League 2019"]
[Site "Dhaka"]
[Date "2019.11.18"]
[Round "7.11"]
[White "Suvankar Maity"]
[Black "Nayem, Haque"]
[Result "1/2-1/2"]
[ECO "B01"]
[WhiteElo "1795"]
[BlackElo "1875"]
[Annotator "NA RC"]
[PlyCount "44"]
[EventDate "2019.11.12"]
[EventCountry "BAN"]
[SourceTitle "playchess.com"]
[Source "ChessBase"]
[SourceQuality "1"]
[TimeControl "5400+30"]

{[%evp 8,40,55,34,32767,32767,78,32767,32767,44,58,3,-5,3,32767,-6,-3,-5,-13,-29,0,-18,27,-20,1,-12,0,0,0,1,0,-8,6,0,0]} 1. e4 {[%emt 1:30:30]} d5 2. exd5 {[%emt 0:00:30]} Qxd5 {[%emt 1:31:00]} 3. Nc3 {[%emt 0:00:30]} Qa5 {[%emt 0:00:30]} 4. d4 {[%emt 0:00:30]} c6 {[%emt 0:00:30]} 5. Bc4 {[%emt 0:00:30]} Nf6 {[%emt 0:00:30]} 6. Nge2 {[%emt 0:00:30]} Bg4 {[%emt 0:00:30]} 7. f3 {[%emt 0:00:30] B01: Scandinavian Defence} Bf5 {[%emt 0:00:30]} (7... Bd7 8. Bd2 Qd8 9. Bg5 h6 10. Bh4 Bf5 11. O-O g5 12. Bf2 e6 13. Ng3 Bg6 14. Bd3 Bxd3 15. Qxd3 {1-0 (27) Sevian,S (2531)-Kritz,L (2583) Richardson 2015}) 8. O-O {[%emt 0:00:30]} e6 {[%emt 0:00:30]} 9. Bd3 {[%emt 0:00:30]} Bxd3 $146 {[%emt 0:00:30]} ({Predecessor:} 9... Be7 10. Bd2 Bxd3 11. cxd3 Qd8 12. Ne4 Nbd7 13. Kh1 O-O {1-0 (32) Holzberg,G (1952)-David,A (1772) Radebeul 2016}) 10. Qxd3 {[%emt 0:00:30]} Be7 {[%emt 0:00:30]} 11. a3 {[%emt 0:00:30]} Nbd7 {[%emt 0:00:30]} 12. Ne4 {[%emt 0:00:30]} O-O {[%emt 0:00:30]} 13. Be3 {[%emt 0:00:30]} Qd8 {[%emt 0:00:30]} 14. c4 {[%emt 0:00:30]} Nxe4 {[%emt 0:00:30]} 15. Qxe4 {[%emt 0:00:30]} Bd6 {[%emt 0:00:30]} 16. Rfd1 {[%emt 0:00:30]} Qc7 {[%emt 0:00:30]} 17. Bf4 {[%emt 0:00:30]} Nf6 {[%emt 0:00:30]} 18. Bxd6 {[%emt 0:00:30]} Qxd6 {[%emt 0:00:30]} 19. Qe5 {[%emt 0:00:30]} Rad8 {[%emt 0:00:30]} 20. Nc3 {[%emt 0:00:30]} Rd7 $11 {[%emt 0:00:30]} 21. Kf2 {[%emt 0:00:30]} Rdd8 {[%emt 0:00:30]} 22. Kg1 {[%emt 0:00:30]} Rd7 {[%emt 0:00:30]} 1/2-1/2

[Event "MARCEL 1st Div Ch-League 2019"]
[Site "Dhaka"]
[Date "2019.11.18"]
[Round "7.12"]
[White "Islam, Sheik Md. Khairul"]
[Black "Parvej, Nahid Sagar"]
[Result "1/2-1/2"]
[ECO "C01"]
[WhiteElo "1966"]
[BlackElo "1976"]
[Annotator "NA RC"]
[PlyCount "29"]
[EventDate "2019.11.12"]
[EventCountry "BAN"]
[SourceTitle "playchess.com"]
[Source "ChessBase"]
[SourceQuality "1"]
[TimeControl "5400+30"]

{[%evp 8,29,6,8,10,13,25,5,20,0,0,-6,0,32767,32767,32767,32767,32767,32767,32767,32767,32767,32767,0]} 1. e4 {[%emt 1:30:30]} e6 {[%emt 1:30:30]} 2. Nf3 {[%emt 0:00:30]} d5 3. exd5 {[%emt 0:00:30]} exd5 {[%emt 0:01:00]} 4. d4 {[%emt 0:00:30]} Bd6 {[%emt 0:00:30]} 5. Bd3 {[%emt 0:00:30]} Ne7 {[%emt 0:00:30]} 6. O-O {[%emt 0:00:30]} O-O {[%emt 0:00:30]} 7. Bg5 {[%emt 0:00:30]} f6 {[%emt 0:00:30]} 8. Bh4 {[%emt 0:00:30]} c6 {[%emt 0:00:30]} 9. c3 {[%emt 0:00:30]} Bf5 {[%emt 0:00:30]} 10. Re1 {[%emt 0:00:30]} Bxd3 {[%emt 0:00:30]} 11. Qxd3 {[%emt 0:00:30]} Ng6 {[%emt 0:00:30]} 12. Nbd2 {[%emt 0:00:30]} Na6 {[%emt 0:00:30]} 13. Qc2 {[%emt 0:00:30]} Nc7 {[%emt 0:00:30]} 14. Qd3 {[%emt 0:00:30]} Na6 {[%emt 0:00:30]} 15. Qc2 $11 {[%emt 0:00:30]} 1/2-1/2

[Event "MARCEL 1st Div Ch-League 2019"]
[Site "Dhaka"]
[Date "2019.11.19"]
[Round "8.1"]
[White "Suvradeepta, Das"]
[Black "Rahman, Almasur"]
[Result "1-0"]
[ECO "A39"]
[WhiteElo "1997"]
[BlackElo "1958"]
[Annotator "NA"]
[PlyCount "133"]
[EventDate "2019.11.12"]
[EventCountry "BAN"]
[SourceTitle "playchess.com"]
[Source "ChessBase"]
[SourceQuality "1"]
[TimeControl "5400+30"]

{[%evp 8,133,29,32767,38,16,27,32767,12,37,32767,22,43,0,39,27,35,-31,32767,32767,32767,32767,32767,32767,32767,50,32767,32767,32767,55,32767,48,57,67,59,45,60,21,92,16,24,32767,27,-13,54,45,60,34,97,58,45,49,56,50,45,38,30,39,70,89,82,31,43,21,12,12,9,21,22,2,16,0,0,0,34,32,46,55,81,87,95,110,110,93,116,118,32767,32767,32767,32767,32767,32767,32767,32767,32767,125,124,118,136,128,134,154,136,145,154,128,169,127,170,161,132,153,166,158,241,262,537,602,568,717,754,925,592,767,952,1495,1800,4794]} 1. c4 {[%emt 0:00:00]} c5 {[%emt 0:00:32]} 2. Nf3 {[%emt 0:02:26]} Nc6 {[%emt 0:00:59]} 3. g3 {[%emt 0:00:47]} Nf6 {[%emt 0:00:57]} 4. Bg2 {[%emt 0:00:13]} g6 {[%emt 0:00:53]} 5. O-O {[%emt 0:00:21]} Bg7 {[%emt 0:00:09]} 6. d4 {[%emt 0:00:12]} cxd4 {[%emt 0:00:53]} 7. Nxd4 {[%emt 0:00:02]} O-O {[%emt 0:00:21]} 8. Nc3 {[%emt 0:00:04]} Nxd4 {[%emt 0:01:24]} 9. Qxd4 {[%emt 0:00:03]} d6 {[%emt 0:00:11]} 10. Rd1 {[%emt 0:03:57]} Ng4 {[%emt 0:03:51]} 11. Qd2 {[%emt 0:01:17]} Qb6 {[%emt 0:03:02] A39: Symmetrical English vs ...g6: 4 Bg2 Bg7 5 Nf3 Nf6 6 0-0 0-0 7 d4} (11... Be6 12. b3 {½-½ (12) Mrdja,M (2279)-Djuric,S (2358) Cesenatico 2019}) 12. Qe1 $146 {[%emt 0:15:51]} ({Better is Predecessor:} 12. e3 $14 Ne5 13. b3 Bg4 14. Re1 Nf3+ 15. Bxf3 Bxf3 16. Bb2 Qa5 17. Qd3 Qh5 18. e4 f5 19. exf5 Rxf5 {½-½ (59) Zaruski,J (1835)-Dotta,G (1910) Montevideo 2018}) 12... Be6 {[%emt 0:02:29]} 13. h3 {[%emt 0:01:28]} Ne5 {[%emt 0:03:15]} 14. b3 {[%emt 0:00:17]} Rac8 {[%emt 0:06:46]} 15. Be3 {[%emt 0:01:55]} Qa6 {[%emt 0:03:22]} 16. Bd4 {[%emt 0:00:17]} Nc6 {[%emt 0:01:41]} 17. Bxg7 {[%emt 0:00:10]} Kxg7 {[%emt 1:07:45]} 18. Qd2 {[%emt 1:09:40]} Qa5 {[%emt 0:00:00]} 19. Rac1 {[%emt 0:00:00]} Qh5 {[%emt 0:00:00]} 20. h4 {[%emt 0:01:00]} Qe5 {[%emt 0:01:30]} 21. Ne4 {[%emt 0:00:00]} h6 {[%emt 0:00:30]} 22. c5 {[%emt 0:00:00]} d5 {[%emt 0:00:00]} (22... dxc5 $11 {remains equal.} 23. Nxc5 (23. Rxc5 Rfd8 $11) 23... Rfd8 24. Nxe6+ Qxe6 25. Qb2+ Qf6 26. Qxf6+ Kxf6) 23. Nc3 {[%emt 0:01:30]} (23. f4 $5 {[%cal Rf4e5]} Qh5 24. Nf2 $14) 23... Rfd8 {[%emt 0:01:30]} 24. Nb5 {[%emt 0:00:30]} a6 {[%emt 0:00:00]} 25. Nc3 {[%emt 0:00:00]} Nb8 {[%emt 0:01:00]} (25... d4 $11 26. Na4 Bg4) 26. Na4 {[%emt 0:01:00]} ({Of course not} 26. Nxd5 Bxd5 27. Bxd5 e6 $17) ({Weaker is} 26. Bxd5 Rxc5 27. e4 Bg4 $17) 26... Nd7 {[%emt 0:01:30]} 27. b4 {[%emt 0:00:30]} ({Weaker is} 27. Bxd5 Nf6 $17) (27. f4 $5 {[%cal Rf4e5]} Qc7 28. Qe3 $14) 27... Kh7 {[%emt 0:00:30]} 28. Bf3 {[%emt 0:00:30]} ({And not} 28. Bxd5 Nf6 $17) 28... f5 {[%emt 0:00:30]} 29. Qf4 {[%emt 0:00:30]} ({Wrong is} 29. Bxd5 $2 Nf6 $19) 29... Qxf4 {[%emt 0:00:00]} 30. gxf4 {[%emt 0:00:30]} Nf6 $1 {[%emt 0:01:00]} 31. Rd4 {[%emt 0:00:30]} Bf7 {[%emt 0:00:00]} 32. Nb6 {[%emt 0:00:30]} Rb8 {[%emt 0:00:00]} 33. e3 {[%emt 0:00:30]} e6 {[%emt 0:01:30]} 34. Kf1 {[%emt 0:00:30]} Be8 {[%emt 0:00:30]} 35. Ke1 {[%emt 0:00:00]} Nd7 {[%emt 0:00:30]} 36. Nxd7 {[%emt 0:01:00]} Bxd7 {[%emt 0:00:00]} 37. Be2 {[%emt 0:00:30]} Kg7 {[%emt 0:01:00]} 38. f3 {[%emt 0:00:00]} Bc6 {[%emt 0:00:30]} 39. Kf2 {[%emt 0:01:00]} Kf6 {[%emt 0:01:00]} 40. Ra1 {[%emt 0:00:30]} Bb5 {[%emt 0:00:30]} 41. a4 {[%emt 0:00:00]} Bxe2 {[%emt 0:00:00]} 42. Kxe2 {[%emt 0:01:00]} Rdc8 {[%emt 0:01:00]} 43. a5 {[%emt 0:00:00]} Rd8 {[%emt 0:00:30]} 44. Rd2 {[%emt 0:01:00]} Rbc8 {[%emt 0:00:00]} 45. Kd3 {[%emt 0:00:30]} Rc7 {[%emt 0:00:00]} 46. Kd4 {[%emt 0:00:30]} Rdd7 {[%emt 0:02:00]} 47. Rb1 {[%emt 0:00:30]} Rd8 {[%emt 0:00:30]} 48. Rdb2 {[%emt 0:00:30]} Ra8 {[%emt 0:00:30]} 49. Rd2 {[%emt 0:00:30]} Rc6 {[%emt 0:00:00]} 50. Rg1 {[%emt 0:00:30]} Rc7 {[%emt 0:00:00]} 51. Rc2 {[%emt 0:00:30]} Rac8 {[%emt 0:00:00]} 52. Rgc1 {[%emt 0:01:00]} Rc6 {[%emt 0:00:00]} 53. Rb1 {[%emt 0:00:00]} Ra8 {[%emt 0:00:30]} 54. b5 {[%emt 0:00:30]} axb5 55. Rxb5 Rc7 {[%emt 0:00:00]} 56. Kc3 {[%emt 0:01:30]} Ke7 {[%emt 0:00:00]} 57. Kb4 {[%emt 0:00:00]} Rg8 {[%emt 0:00:00]} (57... Rd8 $16) 58. Rg2 {[%emt 0:00:00]} Kf6 {[%emt 0:00:00]} 59. Rb6 {[%emt 0:00:00]} Rgc8 {[%emt 0:01:00] [#]} 60. Rc2 $1 {[%emt 0:01:00]} Ke7 {[%emt 0:00:00]} (60... Re7 {was called for.} 61. c6 bxc6 62. Rcxc6 (62. Rbxc6 Rb7+ 63. Kc5 Rcb8 $14) 62... Rxc6 63. Rxc6 g5) 61. Kb5 {[%emt 0:00:00]} Kf7 $2 {[%emt 0:01:00]} (61... Rd8 62. c6 bxc6+ 63. Rcxc6 Rxc6 64. Rxc6 (64. Kxc6 d4 $16) 64... g5 65. hxg5 hxg5 66. fxg5 f4) 62. c6 {[%emt 0:00:30]} bxc6+ {[%emt 0:00:00]} 63. Rcxc6 {[%emt 0:00:00]} Rxc6 {[%emt 0:00:00]} 64. Rxc6 {[%emt 0:00:00]} Rb8+ {[%emt 0:00:00]} 65. Rb6 $18 {[%emt 0:00:00]} Rc8 {[%emt 0:00:00]} 66. a6 {[%emt 0:00:00]} Rc1 {[%emt 0:00:00]} 67. a7 {[%emt 0:00:00]} 1-0

[Event "MARCEL 1st Div Ch-League 2019"]
[Site "Dhaka"]
[Date "2019.11.19"]
[Round "8.2"]
[White "Mohammad, Shameem"]
[Black "Sarbojit Paul"]
[Result "1/2-1/2"]
[ECO "D02"]
[WhiteElo "2015"]
[BlackElo "2074"]
[Annotator "NA RC"]
[PlyCount "36"]
[EventDate "2019.11.12"]
[EventCountry "BAN"]
[SourceTitle "playchess.com"]
[Source "ChessBase"]
[SourceQuality "1"]
[TimeControl "5400+30"]

{[%evp 8,26,16,17,22,0,11,32767,32767,0,0,-10,-17,-34,-29,-54,32767,32767,32767,32767,0]} 1. d4 {[%emt 0:00:00]} d5 {[%emt 0:00:22]} 2. Nf3 {[%emt 0:00:00]} Nf6 {[%emt 0:00:10]} 3. g3 {[%emt 0:00:00]} c6 {[%emt 0:01:01]} 4. Bg2 {[%emt 0:00:04]} Bg4 {[%emt 0:00:11]} 5. Ne5 {[%emt 0:00:20]} Bf5 {[%emt 0:00:37]} 6. c4 {[%emt 0:00:13]} e6 {[%emt 0:00:08]} 7. O-O {[%emt 0:00:24]} Nbd7 {[%emt 0:00:49]} 8. Qb3 {[%emt 0:03:31]} Qb6 {[%emt 0:02:43]} 9. Qxb6 {[%emt 0:01:56]} axb6 {[%emt 0:00:51]} 10. cxd5 {[%emt 0:00:34]} exd5 {[%emt 0:00:32]} 11. Nc3 {[%emt 0:00:12]} Bd6 {[%emt 0:11:15]} 12. Bf4 {[%emt 0:01:06]} Bxe5 {[%emt 0:01:39]} 13. dxe5 {[%emt 0:03:59]} Ne4 $11 {[%emt 0:08:11]} 14. Nxe4 {[%emt 1:24:41]} dxe4 {[%emt 1:08:31]} 15. Rfd1 {[%emt 0:00:30]} Nc5 {[%emt 0:00:30]} 16. Rd2 {[%emt 0:00:30]} Nd7 17. Rdd1 {[%emt 0:00:30]} Nc5 18. Rd2 Nd7 {[%emt 0:01:30]} 1/2-1/2

[Event "MARCEL 1st Div Ch-League 2019"]
[Site "Dhaka"]
[Date "2019.11.19"]
[Round "8.3"]
[White "Anisuzzaman, Jewel"]
[Black "Habibur Rahman, Sohel"]
[Result "1-0"]
[ECO "A39"]
[WhiteElo "1852"]
[BlackElo "1841"]
[Annotator "NA"]
[PlyCount "51"]
[EventDate "2019.11.12"]
[EventCountry "BAN"]
[SourceTitle "playchess.com"]
[Source "ChessBase"]
[SourceQuality "1"]
[TimeControl "5400+30"]

{[%evp 8,47,6,0,1,0,32767,32767,20,10,46,39,37,32767,34,39,39,22,32767,45,51,45,53,69,81,30,35,39,97,32767,173,128,152,148,176,-1,185,152,184,183,198,189]} 1. c4 {[%emt 0:00:00]} c5 {[%emt 0:00:00]} 2. Nc3 {[%emt 0:00:00]} Nc6 {[%emt 0:00:17]} 3. g3 {[%emt 0:00:38]} g6 {[%emt 0:00:29]} 4. Bg2 {[%emt 0:00:04]} Bg7 {[%emt 0:00:16]} 5. Nf3 {[%emt 0:00:05]} d6 {[%emt 0:01:01]} 6. O-O {[%emt 0:00:08]} Nf6 {[%emt 0:01:04]} 7. d4 {[%emt 0:05:26]} cxd4 {[%emt 0:03:18]} 8. Nxd4 {[%emt 0:09:11]} Nxd4 {[%emt 0:00:56]} 9. Qxd4 {[%emt 0:00:02]} O-O {[%emt 0:00:28]} 10. b3 {[%emt 0:04:10]} a6 {[%emt 0:05:10]} 11. Bb2 {[%emt 0:01:28]} Rb8 {[%emt 0:04:25]} 12. Rfd1 {[%emt 0:06:12] A39: Symmetrical English vs ...g6: 4 Bg2 Bg7 5 Nf3 Nf6 6 0-0 0-0 7 d4} (12. Rac1 Ng4 13. Qd2 Qa5 14. h3 Nf6 15. Rfd1 Qh5 16. g4 Qh4 17. Nd5 Nxd5 18. Bxg7 Kxg7 19. cxd5 f5 {½-½ (53) Gopal,G (2580)-Belyakov,B (2456) Doha 2014}) 12... b6 {[%emt 0:04:01]} 13. Nd5 {[%emt 0:07:00]} Bb7 {[%emt 0:02:33]} 14. Rac1 {[%emt 0:09:34]} Bxd5 $146 {[%emt 0:06:01]} ({Predecessor:} 14... Ne8 15. Qd2 Bxb2 16. Qxb2 e6 17. Ne3 Bxg2 18. Kxg2 Qc7 19. Ng4 f6 {½-½ (28) Schwarz,M-Prouza,P Svetla nad Sazavou 1998}) 15. cxd5 {[%emt 0:03:22]} Rc8 {[%emt 0:05:00]} 16. Bh3 {[%emt 0:05:55]} Rc5 {[%emt 0:02:34]} 17. e4 {[%emt 0:02:02]} Qc7 {[%emt 0:02:37]} (17... Nh5 $11 18. Qd2 Bxb2 19. Qxb2 a5) 18. b4 {[%emt 0:02:09]} Rc2 {[%emt 0:03:38] [#]} (18... Nh5 $16 19. Qd2 Bxb2 20. Qxb2 (20. bxc5 Bxc1 21. cxd6 Qxd6 $16) 20... Rc4) 19. Qd3 $1 {[%emt 0:00:27]} Rxc1 {[%emt 0:01:30]} 20. Rxc1 {[%emt 0:02:04]} ({Much less strong is} 20. Bxc1 $6 b5 $16) 20... Qb7 {[%emt 0:01:35]} 21. Rc6 $2 {[%emt 0:00:53]} ({White should play} 21. a4 $18) 21... b5 $2 {[%emt 0:06:52]} (21... Nxd5 $1 $11 {and Black is okay.} 22. exd5 (22. Bxg7 Nxb4 {[%mdl 64] Double Attack} 23. Qd2 Nxc6 $17) 22... Bxb2) 22. Bd4 {[%emt 0:04:15]} Ra8 {[%emt 0:02:07]} 23. Be3 {[%emt 0:03:28]} h5 {[%emt 0:05:51] [#]} 24. Qc2 $18 {[%emt 0:00:58]} Ne8 {[%emt 0:12:39]} 25. Bc8 {[%emt 0:00:32]} Qb8 {[%emt 0:01:19]} 26. Bxa6 {[%emt 0:00:17]} 1-0